Cogmind - Beta 13 @@@ ROGUE MODE // 2024.04.10 @ 14:10:48 Player: CogEmotions! Result: Destroyed by H-61 Shepherd with Heavy Assault Cannon Performance ------------- Evolutions (3) 1500 Regions Visited (9) 1800 Robots Destroyed (87) 435 Value Destroyed (3158) 3158 Prototype IDs (24) 480 Alien Tech Used (0) 0 Bonus (1793) 1793 TOTAL SCORE: 9166 Bonus ------- High Alert Combat Kills 293 Entered Garrisons 200 Used RIF Installer 500 Entered DSFs 500 Aligned with FarCom 300 Cogmind --------- Core Integrity 0/700 Matter 298/300 Energy 100/100 System Corruption 8% Temperature Hot (275) Movement Core (1500) Ox29 Location -7/DSF Parts ------- > --- POWER (2) -------- (None) > --- PROPULSION (3) --- (None) > --- UTILITY (5) ------ Huge Storage Unit Target Analyzer Microactuators > --- WEAPON (3) ------- Chainsword Chainsword > --- INVENTORY (25) --- Light Nuclear Core Micro Nuclear Core VSS Leg VSS Leg VSS Leg Advanced Heat Sink High-capacity Matter Pod (200) Weapon Cycler Hardened Medium Armor Plating Improved Light Armor Plating Force Field Force Field Hacking Suite System Shield Gatling Laser Improved Datajack Improved Datajack Heavy Mace Chainsword Peak State ------------ > --- POWER ------------ Light Nuclear Core Improved Deuterium Engine > --- PROPULSION ------- Aluminum Leg Aluminum Leg Flexi-carbon Leg > --- UTILITY ---------- Improved Heat Sink Huge Storage Unit Target Analyzer Hardened Heavy Armor Plating > --- WEAPON ----------- Gatling Laser Gatling Laser Heavy Particle Cannon > --- INVENTORY -------- Light Nuclear Core Micro Nuclear Core VSS Leg VSS Leg VSS Leg Advanced Heat Sink High-capacity Matter Pod Weapon Cycler Microactuators Improved Light Armor Plating Heavy Reflective Plating Force Field Force Field Hacking Suite System Shield Minigun Improved Datajack Improved Datajack Heavy Mace Chainsword Chainsword Chainsword Longsword +1 [Rating: 49] Favorites ----------- Power Ion Engine Engine Ion Engine Power Core Light Nuclear Core Propulsion Light Treads Treads Light Treads Leg Aluminum Leg Utility Large Storage Unit Device Improved Heat Sink Storage Large Storage Unit Processor Target Analyzer Hackware Hacking Suite Protection Hardened Medium Armor Plating Weapon Gatling Laser Energy Gun Gatling Laser Energy Cannon Improved EM Pulse Cannon Ballistic Gun Assault Rifle Launcher Grenade Launcher Slashing Weapon Longsword +1 Build | -11 -10 -10 -10 -9 -8 -7 -7 -7 -7 ------- Run | Yrd Mat Min Exi Min Mat Fac Gar Fac DSF Slots Evolved 6 | . . . . . 4 2 . . . Power 1 | . . . . . . 1 . . . Propulsion 1 | . . . . . 1 . . . . Utility 3 | . . . . . 2 1 . . . Weapon 1 | . . . . . 1 . . . . Parts Attached 83 | 6 4 2 1 . 34 5 22 3 6 Power 14 | 1 . . . . 6 2 4 . 1 Engine 6 | 1 . . . . 3 1 1 . . Core 8 | . . . . . 3 1 3 . 1 Reactor . | . . . . . . . . . . Propulsion 16 | 2 . . . . 5 1 6 2 . Treads 11 | 2 . . . . 5 1 3 . . Leg 5 | . . . . . . . 3 2 . Wheel . | . . . . . . . . . . Hover . | . . . . . . . . . . Flight . | . . . . . . . . . . Utility 18 | 1 3 . . . 5 2 5 1 1 Device 4 | . . . . . . 1 2 . 1 Storage 5 | 1 3 . . . 1 . . . . Processor 1 | . . . . . . . 1 . . Hackware 1 | . . . . . 1 . . . . Protection 7 | . . . . . 3 1 2 1 . Artifact . | . . . . . . . . . . Weapon 35 | 2 1 2 1 . 18 . 7 . 4 Energy Gun 9 | 1 . . . . 3 . 5 . . Energy Cannon 10 | . . . 1 . 7 . 2 . . Ballistic Gun 5 | 1 . 1 . . 2 . . . 1 Ballistic Cannon . | . . . . . . . . . . Launcher 3 | . 1 1 . . 1 . . . . Special Weapon . | . . . . . . . . . . Impact Weapon . | . . . . . . . . . . Slashing Weapon 8 | . . . . . 5 . . . 3 Piercing Weapon . | . . . . . . . . . . Special Melee Weapon . | . . . . . . . . . . Unidentified Prototypes 1 | . . . . . 1 . . . . Parts Lost 37 | . . . . . 12 1 13 . 11 Power 9 | . . . . . 3 1 2 . 3 Propulsion 11 | . . . . . 3 . 5 . 3 Utility 7 | . . . . . 1 . 4 . 2 Weapon 10 | . . . . . 5 . 2 . 3 Highest Loss Streak 9 | . . . . . 8 1 9 . 9 To Critical Strikes . | . . . . . . . . . . Average Slot Usage (%) 84 | . 85 85 77 71 74 99 97 96 85 Engine 6 | . 14 14 14 14 . 5 3 7 6 Core 5 | . . . . . 5 8 11 7 5 Treads 19 | . 28 28 28 28 23 23 8 . . Leg 5 | . . . . . . . 13 23 21 Device 4 | . . . . . . 3 13 11 6 Storage 9 | . 14 14 14 14 9 7 7 7 7 Processor 1 | . . . . . . . 3 7 7 Hackware 2 | . . . . . 5 7 2 . . Protection 6 | . . . . . 10 18 7 7 6 Energy Gun 6 | . 2 . . . 4 7 15 15 13 Energy Cannon 8 | . . . 7 14 11 15 7 7 3 Ballistic Gun 2 | . 14 16 6 . . . . . 1 Launcher 2 | . 11 11 6 . . . . . . Slashing Weapon 1 | . . . . . 4 . . . . Naked Turns . | . . . . . . . . . . Heaviest Build 133 | 14 30 30 43 43 120 133 130 130 130 Greatest Support 70 | 40 40 40 40 40 66 70 70 40 40 Greatest Overweight (x) 30 | . . . 1 1 12 2 5 3 30 Average Overweight (x) . | . . . . 1 . 1 1 2 3 Largest Inventory Capacity 25 | 8 25 15 15 15 25 25 25 25 25 Average Capacity 19 | 6 13 15 15 15 17 25 25 25 25 Most Carried 25 | 4 6 6 11 9 18 22 25 25 25 Average Carried 13 | 1 4 6 7 9 10 17 22 21 22 Final Capacity 25 | 8 15 15 15 15 25 25 25 25 25 Final Carried 23 | 1 6 6 9 9 17 22 23 20 19 Class Distribution -------------------- 50% | Mutant 21% | Scavenger-Gunner 20% | Scavenger-Tank 3% | Tank Dominant Class ---------------- Mutant | -10/Materials Mutant | -10/Mines Mutant | -10/Exiles Mutant | -9/Mines Mutant | -8/Materials Scavenger-Tank | -7/Factory Scavenger-Gunner | -7/Garrison Scavenger-Gunner | -7/Factory Scavenger-Gunner | -7/DSF Resources | -11 -10 -10 -10 -9 -8 -7 -7 -7 -7 ----------- Run | Yrd Mat Min Exi Min Mat Fac Gar Fac DSF Matter Collected 1497 | 250 129 89 . . 520 62 307 . 140 Remotely . | . . . . . . . . . . Salvage Created 3359 | . 337 84 . . 829 234 1454 . 421 Parts 167 | . 14 9 . . 51 11 54 . 28 Haulers Intercepted 1 | . . . . . 1 . . . . Recyclers Shooed . | . . . . . . . . . . Parts Field Recycled . | . . . . . . . . . . Retrieved Matter . | . . . . . . . . . . Parts Self-Destructed . | . . . . . . . . . . Prevented . | . . . . . . . . . . Kills | -11 -10 -10 -10 -9 -8 -7 -7 -7 -7 ------- Run | Yrd Mat Min Exi Min Mat Fac Gar Fac DSF Combat Hostiles Destroyed 71 | . 4 5 . . 19 3 28 . 12 Melee 4 | . . . . . 4 . . . . Guns 36 | . 2 2 . . 1 2 20 . 9 Cannons 12 | . . . . . 5 1 3 . 3 AOE 13 | . 2 3 . . 8 . . . . Classes Destroyed 14 | . 4 1 . . 7 1 . . 1 Worker 3 | . 1 . . . 1 1 . . . Builder 3 | . . . . . 3 . . . . Tunneler 1 | . . . . . 1 . . . . Hauler 1 | . . . . . 1 . . . . Recycler 3 | . 2 . . . 1 . . . . Operator 2 | . . . . . 1 1 . . . Watcher 3 | . 1 . . . 1 1 . . . Swarmer 18 | . . 3 . . 8 . . . 7 Grunt 33 | . 4 2 . . 6 2 19 . . Brawler 1 | . . . . . . . . . 1 Duelist 1 | . . . . . 1 . . . . Sentry 8 | . . . . . 2 . 6 . . Specialist 8 | . . . . . 2 . 2 . 4 Programmer 2 | . . . . . . 1 1 . . Best Kill Streak 8 | . 2 5 . . 7 2 8 . 4 Combat Bots Only 8 | . 2 5 . . 5 1 8 . 4 Max Kills in Single Turn 3 | . 2 1 . . 3 1 2 . 2 Gunslinging 1 | . . . . . . . 1 . 1 Exploded 3 | . 2 1 . . 3 . . . . Melee 1 | . . . . . 1 . . . . Uniques/NPCs Destroyed . | . . . . . . . . . . Combat | -11 -10 -10 -10 -9 -8 -7 -7 -7 -7 -------- Run | Yrd Mat Min Exi Min Mat Fac Gar Fac DSF Hostile Shots Fired 609 | . 15 21 . . 193 10 250 . 120 Missed 179 | . 5 5 . . 59 4 71 . 35 Damage Taken 7021 | . 154 222 . . 2219 94 2474 . 1858 Core 1239 | . 28 26 . . 469 13 305 . 398 Absorbed by Shields . | . . . . . . . . . . Ignored by Resistances 118 | . . . . . . . 118 . . Regen/Repaired (Parts) 48 | . . . . . 48 . . . . Core Remaining (%) 64 | 100 . . . 78 14 . . . . Volleys Fired 139 | . 13 9 . . 28 10 58 . 21 Largest 3 | . 2 2 . . 3 3 3 . 3 Hottest 240 | . 70 50 . . 207 193 240 . 235 Shots Fired 344 | . 26 18 . . 44 30 174 . 52 Gun 220 | . 21 14 . . 17 10 113 . 45 Cannon 115 | . . . . . 27 20 61 . 7 Launcher 9 | . 5 4 . . . . . . . Special . | . . . . . . . . . . Kinetic 46 | . 13 14 . . 7 . . . 12 Thermal 235 | . 8 . . . 19 10 158 . 40 Explosive 9 | . 5 4 . . . . . . . Electromagnetic 54 | . . . . . 18 20 16 . . Robot Hit Streak 11 | . 7 2 . . 7 8 11 . 11 Robot Miss Streak 6 | . 3 5 . . 6 3 3 . 6 Penetration Max . | . . . . . . . . . . Secondary Targets 4 | . . 1 . . . . 1 . 2 Max Gunslinging Chain 1 | . . 1 . . . . 1 . 1 Shots Hit Robots 252 | . 15 8 . . 56 18 115 . 40 Core Hits 160 | . 13 9 . . 30 9 72 . 27 Critical Kills . | . . . . . . . . . . Critical Parts Destroyed 2 | . . . . . . . . . 2 Critical Strikes 10 | . . . . . 7 . 1 . 2 Burn 3 | . . . . . 2 . 1 . . Destroy 2 | . . . . . . . . . 2 Sever 5 | . . . . . 5 . . . . Melee Attacks 30 | . . . . . 30 . . . . Impact . | . . . . . . . . . . Slashing 30 | . . . . . 30 . . . . Piercing . | . . . . . . . . . . Sneak Attacks 3 | . . . . . 3 . . . . Combat Hostiles . | . . . . . . . . . . Follow-up Attacks 1 | . . . . . 1 . . . . Damage Inflicted 8257 | . 502 274 . 4 3218 558 2797 . 904 Guns 3237 | . 177 107 . . 187 146 1841 . 779 Cannons 2436 | . . . . . 1064 351 896 . 125 Explosions 1467 | . 325 167 . . 854 61 60 . . Melee 1113 | . . . . . 1113 . . . . Ramming 4 | . . . . 4 . . . . . Kinetic 407 | . 103 107 . . 87 . . . 110 Thermal 5059 | . 74 . . . 1583 207 2401 . 794 Explosive 492 | . 325 167 . . . . . . . Electromagnetic 1182 | . . . . . 435 351 396 . . Impact . | . . . . . . . . . . Slashing 1113 | . . . . . 1113 . . . . Piercing . | . . . . . . . . . . Highest Corruption 8 | . . . . . . . 1 1 8 Average Corruption 1 | . . . . . . . 1 1 1 Corruption Purged . | . . . . . . . . . . Corruption Blocked . | . . . . . . . . . . Effects 13 | . . . . . . . 5 2 6 Message Errors 2 | . . . . . . . 1 1 . Matter Fused 2 | . . . . . . . 2 . . Heat Flow Errors 2 | . . . . . . . 1 . 1 Energy Discharges 3 | . . . . . . . 1 1 1 Parts Rejected 1 | . . . . . . . . . 1 Data Loss (minor) 1 | . . . . . . . . . 1 Data Loss (major) 1 | . . . . . . . . . 1 Weapon Failures 1 | . . . . . . . . . 1 Overload Shots . | . . . . . . . . . . Overflow Damage 449 | . . . . . 411 34 4 . . Projectiles 167 | . . . . . 129 34 4 . . Explosions 39 | . . . . . 39 . . . . Melee 243 | . . . . . 243 . . . . Knockbacks . | . . . . . . . . . . Impact . | . . . . . . . . . . Kinetic . | . . . . . . . . . . Secondary . | . . . . . . . . . . Self-Inflicted Damage 356 | . 21 70 . . 228 . 37 . . Shots 10 | . 1 4 . . 4 . 1 . . Rammed 1 | . . . . 1 . . . . . Targets Rammed 1 | . . . . 1 . . . . . Kicked . | . . . . . . . . . . Crushed . | . . . . . . . . . . Highest Temperature 529 | . 132 7 . . 300 159 434 . 529 Average Temperature 146 | . 71 4 . . 91 81 178 . 192 Received Heat Transfer 2166 | . 75 27 . . 549 72 1065 . 378 Effects 17 | . . . . . . . 11 . 6 Shutdowns 8 | . . . . . . . 6 . 2 Energy Bleed 5 | . . . . . . . 3 . 2 Matter Decay 3 | . . . . . . . 2 . 1 Damage (major) 1 | . . . . . . . . . 1 Siege Activations . | . . . . . . . . . . Robots Corrupted 4 | . . . . . 1 . 3 . . Combat Hostiles 4 | . . . . . 1 . 3 . . Parts Fried 10 | . . . . . 5 2 3 . . Impact Corruptions . | . . . . . . . . . . Robots Melted 2 | . . . . . . . 2 . . Combat Hostiles 2 | . . . . . . . 2 . . Parts Melted 26 | . 1 . . . 3 1 15 . 6 Heat Transferred 8660 | . 222 . . . 1607 359 4812 . 1660 Parts Sabotaged . | . . . . . . . . . . Parts Stolen . | . . . . . . . . . . Parts Stripped . | . . . . . . . . . . Power Chain Reactions 2 | . . . . . . 1 1 . . Alert | -11 -10 -10 -10 -9 -8 -7 -7 -7 -7 ------- Run | Yrd Mat Min Exi Min Mat Fac Gar Fac DSF Peak Influence 773 | . 196 220 . . 380 109 773 405 548 Initial 405 | . . 76 . . . 9 84 405 283 Average 236 | . 100 164 . . 96 38 491 405 396 Maximum Alert Level 3 | . . 1 . . 1 . 3 2 2 Low Security (%) 51 | 100 100 44 . 100 78 100 8 . . Level 1 21 | . . 55 . . 21 . 28 . 44 Level 2 23 | . . . . . . . 53 100 55 Level 3 2 | . . . . . . . 10 . . Level 4 . | . . . . . . . . . . Level 5 . | . . . . . . . . . . High Security . | . . . . . . . . . . Max Security . | . . . . . . . . . . Sterilizations 1 | . . . . . . . . . 1 Squads Dispatched 9 | . . . . . 5 2 . . 2 Investigation 3 | . . . . . 2 1 . . . Extermination 1 | . . . . . . 1 . . . Reinforcement 5 | . . . . . 3 . . . 2 Assault . | . . . . . . . . . . Garrison . | . . . . . . . . . . Intercept . | . . . . . . . . . . Searches Triggered . | . . . . . . . . . . Construction Impeded 1 | . . . . . 1 . . . . Haulers Reinforced . | . . . . . . . . . . Active Scanning Responses . | . . . . . . . . . . Cargo Convoy Interrupts . | . . . . . . . . . . Stealth | -11 -10 -10 -10 -9 -8 -7 -7 -7 -7 --------- Run | Yrd Mat Min Exi Min Mat Fac Gar Fac DSF Distress Signals . | . . . . . . . . . . Communications Jammed . | . . . . . . . . . . Distress Signals . | . . . . . . . . . . Times Spotted 89 | . 8 5 . . 22 6 29 . 19 Peak Tracking Total 9 | . 3 2 . . 6 2 9 . 6 Tactical Retreats 5 | . . . . . . 1 2 . 2 Traps | -11 -10 -10 -10 -9 -8 -7 -7 -7 -7 ------- Run | Yrd Mat Min Exi Min Mat Fac Gar Fac DSF Traps Triggered 3 | . . . . . 1 . 2 . . Indirectly . | . . . . . . . . . . Trap Hack Attempts . | . . . . . . . . . . Triggered . | . . . . . . . . . . Disarmed 4 | . . . . . . 4 . . . Reprogrammed . | . . . . . . . . . . Reused . | . . . . . . . . . . Traps Extracted . | . . . . . . . . . . Installed . | . . . . . . . . . . Triggered . | . . . . . . . . . . Machines | -11 -10 -10 -10 -9 -8 -7 -7 -7 -7 ---------- Run | Yrd Mat Min Exi Min Mat Fac Gar Fac DSF Machines Disabled 8 | . 1 . . . 4 2 . . 1 Max in Single Turn 2 | . 1 . . . 2 1 . . 1 Garrison Access 1 | . . . . . . . . 1 . Machines Repaired . | . . . . . . . . . . Machines Dismantled . | . . . . . . . . . . Machines Sabotaged . | . . . . . . . . . . Overloaded Fab Kills . | . . . . . . . . . . Hacking | -11 -10 -10 -10 -9 -8 -7 -7 -7 -7 --------- Run | Yrd Mat Min Exi Min Mat Fac Gar Fac DSF Machines Accessed 15 | . 1 . 5 . 2 2 3 2 . Terminals 7 | . 1 . . . 1 1 3 1 . Fabricators . | . . . . . . . . . . Repair Stations 1 | . . . . . 1 . . . . Recycling Units . | . . . . . . . . . . Scanalyzers . | . . . . . . . . . . Garrison Access 2 | . . . . . . 1 . 1 . Total Hacks 64 | . 1 . 44 . 6 5 5 3 . Successful 57 | . 1 . 44 . 5 3 1 3 . Failed 7 | . . . . . 1 2 4 . . Catastrophic . | . . . . . . . . . . Database Lockouts . | . . . . . . . . . . Manual 3 | . . . 3 . . . . . . Terminals 13 | . 1 . . . 3 3 5 1 . Fabricators . | . . . . . . . . . . Repair Stations 3 | . . . . . 3 . . . . Recycling Units . | . . . . . . . . . . Scanalyzers . | . . . . . . . . . . Garrison Access 4 | . . . . . . 2 . 2 . Terminal Hacks 52 | . 1 . 44 . 3 2 1 1 . Record 47 | . 1 . 43 . 3 . . . . Open DSF 1 | . . . . . . . . 1 . Locate Traps 1 | . . . . . . 1 . . . Disarm Traps 1 | . . . . . . 1 . . . Garrison Registry 1 | . . . . . . . 1 . . Derelict Proto ID Bank 1 | . . . 1 . . . . . . Fabricator Hacks . | . . . . . . . . . . Repair Station Hacks 2 | . . . . . 2 . . . . Scan Component 1 | . . . . . 1 . . . . Repair 1 | . . . . . 1 . . . . Recycling Unit Hacks . | . . . . . . . . . . Scanalyzer . | . . . . . . . . . . Garrison Access Hacks 3 | . . . . . . 1 . 2 . Unlock Access 1 | . . . . . . 1 . . . Seal Access 1 | . . . . . . . . 1 . Coupler Status 1 | . . . . . . . . 1 . Unauthorized Hacks . | . . . . . . . . . . Terminals . | . . . . . . . . . . Fabricators . | . . . . . . . . . . Repair Stations . | . . . . . . . . . . Recycling Units . | . . . . . . . . . . Scanalyzers . | . . . . . . . . . . Garrison Access . | . . . . . . . . . . Data Cores Recovered 1 | . . . . . . 1 . . . Used . | . . . . . . . . . . Hacking Detections 7 | . . . . . 2 2 3 . . Full Trace Events 2 | . . . . . 1 1 . . . Feedback Events . | . . . . . . . . . . Feedback Blocked . | . . . . . . . . . . Robot Schematics Acquired . | . . . . . . . . . . Robots Built . | . . . . . . . . . . Authchips . | . . . . . . . . . . Time . | . . . . . . . . . . Total Robot Build Rating . | . . . . . . . . . . Part Schematics Acquired . | . . . . . . . . . . Parts Built . | . . . . . . . . . . Authchips . | . . . . . . . . . . Time . | . . . . . . . . . . Total Part Build Rating . | . . . . . . . . . . Parts Repaired 1 | . . . . . 1 . . . . Time 38 | . . . . . 38 . . . . Parts Recycled . | . . . . . . . . . . Recycled Matter . | . . . . . . . . . . Retrieved Matter . | . . . . . . . . . . Retrieved Components . | . . . . . . . . . . Parts Scanalyzed . | . . . . . . . . . . Part Schematics Acquired . | . . . . . . . . . . Parts Damaged . | . . . . . . . . . . Bothacking | -11 -10 -10 -10 -9 -8 -7 -7 -7 -7 ------------ Run | Yrd Mat Min Exi Min Mat Fac Gar Fac DSF Used RIF Installer 1 | . . . . . . . 1 . . Robots Hacked . | . . . . . . . . . . Non-combat . | . . . . . . . . . . Combat . | . . . . . . . . . . Robot Hacks Applied . | . . . . . . . . . . Relay Couplers Released . | . . . . . . . . . . Fabnet Peak Effective % . | . . . . . . . . . . Robots Rewired . | . . . . . . . . . . Allies Hacked . | . . . . . . . . . . Hacks Repelled . | . . . . . . . . . . Allies | -11 -10 -10 -10 -9 -8 -7 -7 -7 -7 -------- Run | Yrd Mat Min Exi Min Mat Fac Gar Fac DSF Total Allies . | . . . . . . . . . . Largest Group . | . . . . . . . . . . Highest-Rated Group . | . . . . . . . . . . Highest-Rated Ally . | . . . . . . . . . . Total Orders . | . . . . . . . . . . Ally Attacks . | . . . . . . . . . . Total Damage . | . . . . . . . . . . Kills . | . . . . . . . . . . Allies Corrupted . | . . . . . . . . . . Allies Melted . | . . . . . . . . . . Intel | -11 -10 -10 -10 -9 -8 -7 -7 -7 -7 ------- Run | Yrd Mat Min Exi Min Mat Fac Gar Fac DSF Robot Analysis Total . | . . . . . . . . . . Derelict Logs Recovered 1 | . . 1 . . . . . . . Drone Launches . | . . . . . . . . . . Drone Recoveries . | . . . . . . . . . . Exploration | -11 -10 -10 -10 -9 -8 -7 -7 -7 -7 ------------- Run | Yrd Mat Min Exi Min Mat Fac Gar Fac DSF Turns Passed 8139 | 79 379 322 1704 51 2398 663 1715 362 466 Spaces Moved 3041 | 50 201 183 881 21 724 220 538 122 101 Core 22 | 13 . . . . 7 . . . 2 Treads 2450 | 37 201 183 881 21 717 220 190 . . Legs 569 | . . . . . . . 348 122 99 Wheels . | . . . . . . . . . . Hover . | . . . . . . . . . . Flight . | . . . . . . . . . . Fastest Speed 50 | 50 160 160 160 240 145 230 235 260 330 Average Speed 214 | 131 160 160 193 240 191 267 260 286 353 Slowest Speed 1550 | 160 160 160 240 240 650 310 470 330 1550 Overloaded Moves . | . . . . . . . . . . Propulsion Burnouts . | . . . . . . . . . . Robots Hopped . | . . . . . . . . . . Cave-ins Triggered . | . . . . . . . . . . Exploration Rate (%) 34 | 4 37 51 92 11 37 8 54 5 41 Regions Visited 9 Branch Regions 3 Pre-discovered Areas 1 | . . . 1 . . . . . . Known Exits Taken 2 | . . . . . . 1 . 1 . Unknown Exits Taken 6 | 1 1 1 1 1 1 . . . . Scrap Searched . | . . . . . . . . . . Spaces Dug . | . . . . . . . . . . Terrain Destroyed 162 | . 28 33 . . 91 3 7 . . Melee . | . . . . . . . . . . Projectile 4 | . . . . . 4 . . . . AOE 158 | . 28 33 . . 87 3 7 . . Terrain Rammed . | . . . . . . . . . . Walls Destroyed . | . . . . . . . . . . Machines Disabled . | . . . . . . . . . . Actions | -11 -10 -10 -10 -9 -8 -7 -7 -7 -7 --------- Run | Yrd Mat Min Exi Min Mat Fac Gar Fac DSF Total 4335 | 64 231 193 885 21 1644 272 711 138 176 Wait 922 | . 7 . . . 784 27 62 1 41 Move 3034 | 49 200 182 880 20 723 220 537 122 101 Hop . | . . . . . . . . . . Pick Up 91 | 8 6 . 2 . 37 9 19 4 6 Fast Attach 1 | . . . . . . . 1 . . Attach 52 | 6 . . 1 . 22 4 12 2 5 Detach 3 | . . . 2 . 1 . . . . Swap 30 | . 4 2 . . 12 1 9 1 1 Drop 27 | 1 1 . . . 8 1 7 8 1 Fire 139 | . 13 9 . . 28 10 58 . 21 Melee 29 | . . . . . 29 . . . . Ram . | . . . . . . . . . . Kick . | . . . . . . . . . . Crush 1 | . . . . 1 . . . . . Escape Stasis 5 | . . . . . . . 5 . . Rewire 1 | . . . . . . . 1 . . Trap . | . . . . . . . . . . Miscellaneous . | . . . . . . . . . . Route ------- -11/Scrapyard -10/Materials (discovered 2 exits: [*Mat] / [*Min]) -10/Mines (discovered 2 exits: [*Mat] / *Exi) -10/Exiles (discovered 2 exits: [*Min x2]) -9/Mines -8/Materials -7/Factory -7/Garrison (discovered 4 exits: *Fac x4) -7/Factory -7/DSF History --------- Turn | Location | Event 4 | -11/Scrapyard | Discovered new exit (range 14) 80 | -11/Scrapyard | Entered Materials 210 | -10/Materials | Discovered new exit (range 7) 303 | -10/Materials | Build established: Mutant 307 | -10/Materials | Discovered new exit (range 8) 459 | -10/Materials | Entered Mines 504 | -10/Mines | Learned Materials terminal intel 634 | -10/Mines | Discovered new exit (range 11) 773 | -10/Mines | Deemed a non-threat by the Exiles lab entrance 774 | -10/Mines | Discovered new exit (range 5) 781 | -10/Mines | Entered Exiles 825 | -10/Exiles | Met 8R-AWN 853 | -10/Exiles | Met EX-HEX 916 | -10/Exiles | Met EX-DEC 1010 | -10/Exiles | Visited The Gauntlet 1273 | -10/Exiles | Discovered new exit (range 14) 1386 | -10/Exiles | Learned location of Zion (-6) 1445 | -10/Exiles | Met EX-BIN 1468 | -10/Exiles | Aligned with FarCom system 1469 | -10/Exiles | Given EX-Vault access code 1578 | -10/Exiles | Opened EX-Vault 1594 | -10/Exiles | Found Longsword +1 1597 | -10/Exiles | Found YOLO Cannon 1653 | -10/Exiles | Warned to stay clear of 0b10 Research branches 2027 | -10/Exiles | Discovered new exit (range 14) 2485 | -10/Exiles | Stole two prototypes: YOLO Cannon, Longsword +1 2485 | -10/Exiles | Entered Mines 2502 | -9/Mines | Discovered new exit (range 8) 2536 | -9/Mines | Entered Materials 2536 | -8/Materials | Evolved 4 slots: Propulsion x1, Utility x2, Weapon x1 2537 | -8/Materials | Loaded intel: 12 terminal locations 2954 | -8/Materials | Core integrity fell below 50% 3000 | -8/Materials | Lost 8 parts (3p1n4w) 4036 | -8/Materials | Core integrity fell below 20% 4583 | -8/Materials | Repaired Nuclear Core 4838 | -8/Materials | Discovered new exit (range 7) 4890 | -8/Materials | Build established: Scavenger-Tank 4934 | -8/Materials | Entered Factory 4934 | -7/Factory | Evolved 2 slots: Power x1, Utility x1 4936 | -7/Factory | FarCom data flow suspended 5597 | -7/Factory | Identified exit to Garrison 5597 | -7/Factory | Entered Garrison 5880 | -7/Garrison | Triggered checkpoint 6034 | -7/Garrison | Triggered checkpoint 6198 | -7/Garrison | Triggered checkpoint 6266 | -7/Garrison | Lost 9 parts (2p3n3u1w) 6272 | -7/Garrison | Destroyed 8 combat bots 6450 | -7/Garrison | Triggered checkpoint 6568 | -7/Garrison | Build established: Scavenger-Gunner 6585 | -7/Garrison | Found Hvy. Reflective Plating 6805 | -7/Garrison | Discovered new exit (range 9) 6934 | -7/Garrison | Triggered checkpoint 6962 | -7/Garrison | Triggered checkpoint 7020 | -7/Garrison | Discovered new exit (range 35) 7020 | -7/Garrison | Discovered new exit (range 19) 7020 | -7/Garrison | Discovered new exit (range 51) 7020 | -7/Garrison | Discovered new exit (range 30) 7130 | -7/Garrison | Triggered checkpoint 7182 | -7/Garrison | Installed Relay Interface Framework 7312 | -7/Garrison | Entered Factory 7674 | -7/Factory | Identified exit to DSF 7674 | -7/Factory | Entered DSF 7763 | -7/DSF | Additional patrols routed to DSF 8075 | -7/DSF | Sterilization system engaged 8093 | -7/DSF | Core integrity fell below 50% 8095 | -7/DSF | Ambient heat levels rising (+10) 8110 | -7/DSF | Ambient heat levels rising (+10) 8125 | -7/DSF | Ambient heat levels rising (+10) 8130 | -7/DSF | Core integrity fell below 20% 8140 | -7/DSF | Ambient heat levels rising (+10) 8140 | -7/DSF | Destroyed by H-61 Shepherd with Heavy Assault Cannon Last Messages --------------- G-47 Trooper overheating. Acquired 51 matter. Penetrated by Slug. ALERT: Ambient heat levels +10. G-47 Trooper overheating. Overheating: Target Analyzer damaged (-7). G-47 Trooper heat spikes uncontrollably. G-47 Trooper overheating. Knocked back. Acquired 8 matter. G-47 Trooper overheating. System corrupted: Longsword +1 rejected. G-47 Trooper overheating. G-47 Trooper heat damages Aluminum Leg. G-47 Trooper heat damages Aluminum Leg, Aluminum Leg. G-47 Trooper overheating. Acquired 6 matter. ALERT: Ambient heat levels +10. Penetrated by Slug. Map ----- +----------------------------------------------------+ | ????????????????????????????????????????????? | | ????????????????????????????????????????????? | | ????????????????????????????????????????????? | | ????????????????????????????????????????????? | | ????????????????????????????????????????????? | | ????????????????????????????????????????????? | | ????????????????????????????????????????????? | | ????????????????????????????????????????????? | | ???????????????????????#???###??######??????? | | ???????????????????????#]]?# ?# ]]#??????? | | ??????????????????? ##]]]# ## ]]#??????? | | ?????????????????? ^#??????? | | ????????????????? ^##?????? | | ????????????????? ^"#?????? | | ????????????????? ??#!!!" ## % ##?????? | | ?????????????????# ??#!!!?????# #??????? | | ???????????????### #????????### ###??????? | | ????????????????!! !????????# #???????? | | ????????????????!! !????????# #???????? | | ?????????????????! !????????# #???????? | | ???????????????### #????????### ##???????? | | ???????????????# % ????????#! #???????? | | ???????????????# ????????#!! #???????? | | ???????????????# ! ?##########!%##???????? | | ?????????????????#!%!### % #!!### [###??????? | | ???????????#!!!### = "#;g@/;!!##=* ""###????? | | ????? %[!! !%*%=%**["""""#???? | | ????? !%% =%[=%[%=%"##"#???? | | ????????#!!#!!!#// H;[ #!=##"""""#??????? | | ???????????#???#// #########"""""#??????? | | ???????????????####;####???????##"####??????? | | ??????????????????##????????????#"#?????????? | | ????????????????????????????????#""?????????? | | ?????????????????????????????????##?????????? | | ????????????????????????????????????????????? | | ????????????????????????????????????????????? | | ????????????????????????????????????????????? | | ????????????????????????????????????????????? | | | | | | | | | | | | | | | | | | | | | | | | | +----------------------------------------------------+ Best States ------------- Heat Dissipation 61 Coolant Potential 65 Energy Generation 25 Energy Capacity 350 Matter Stores 300 Matter Capacity 300 Sight Range 16 Terrain Scan Density 10 Armor Coverage 600 Resistance: KI 20 Melee Speed Boost 20 Evasion (%) 50 Target Analysis 5 Recoil Reduction 3 Offensive Hacking 10 Item Schematics ----------------- None Robot Schematics ------------------ None Fabricated ------------ Nothing Alien Tech Used ----------------- None Achievements -------------- None Challenges ------------ None Game ------ Seed MatterMassRail Manual? 0 Play Time 01:00:00 Cumulative 16.1 hours Start 2024.04.10 @ 12:41:31 End 2024.04.10 @ 14:10:48 Sessions 1 Manual Loads 0 Difficulty Rogue Special Mode None Game No. 36 Rogue 36 Adventurer 0 Explorer 0 Win Type - Total 0 Types 0/0/0/0/0/0/0/0/0 Lore% 17 Gallery% 21 Achievement% 16 Wizard Run 0 Options --------- Layout 1 ASCII 0 Keyboard 0 Movement Mouse Keybinds 0 Fullscreen 1 Font 24/Smallcaps Map View 50x35 Zoom Use 0% Tactical HUD 0 Map Filters NONE Filters NONE Steam 1 RUN: ec550c70-3dad-444e-a1bd-bd93564e8186